lending/lending_fUSD_20250114
["ID","MTS","AMOUNT","RATE_DAILY","PERIOD"]
[348900811,1736867441886,-500.0,9.97e-05,2]
[348900813,1736867441895,-799.28,9.97e-05,2]
[348900815,1736867441905,-500.0,9.97e-05,2]
[348900817,1736867441915,-500.0,9.97e-05,2]
[348900819,1736867441924,-500.0,9.97e-05,2]
[348900821,1736867441934,-500.0,9.97e-05,2]
[348900823,1736867441943,-500.0,9.97e-05,2]
[348900825,1736867441952,-500.0,9.97e-05,2]
[348900827,1736867441962,-1996.86,9.97e-05,2]
[348900829,1736867441972,-500.0,9.97e-05,2]
[348900831,1736867441981,-500.0,9.97e-05,2]
[348900833,1736867441992,-500.0,9.97e-05,2]
[348900835,1736867442002,-500.0,9.97e-05,2]
[348900837,1736867442011,-963.94,9.97e-05,2]
[348900839,1736867442021,-500.0,9.97e-05,2]
[348900841,1736867442030,-502.779308,9.97e-05,2]
[348900843,1736867442040,-500.0,9.97e-05,2]
[348900845,1736867442050,-500.0,9.97e-05,2]
[348900848,1736867442060,-500.0,9.97e-05,2]
[348900849,1736867442071,-501.28865827,9.97e-05,2]
[348900852,1736867442080,-500.0,9.97e-05,2]
[348900854,1736867442090,-500.0,9.97e-05,2]
[348900856,1736867442099,-1272.73,9.97e-05,2]
[348900858,1736867442110,-353.730012,9.97e-05,2]
[348900860,1736867442119,-503.75490631,9.97e-05,2]
[348900862,1736867442129,-500.0,9.97e-05,2]
[348900864,1736867442138,-582.04828704,9.97e-05,2]
[348900866,1736867442148,-500.0,9.97e-05,2]
[348900868,1736867442157,-1286.33,9.97e-05,2]
[348900870,1736867442166,-500.0,9.97e-05,2]
[348900872,1736867442175,-281.12342451,9.97e-05,2]
[348900874,1736867442185,-562.76,9.97e-05,2]
[348900875,1736867442194,-1127.42,9.97e-05,2]
[348900878,1736867442204,-500.0,9.97e-05,2]
[348900880,1736867442213,-1665.07038925,9.97e-05,2]
[348900882,1736867442223,-500.0,9.97e-05,2]
[348900884,1736867442232,-4368.04,9.97e-05,2]
[348900886,1736867442241,-500.0,9.97e-05,2]
[348900888,1736867442250,-1107.29,9.97e-05,2]
[348900889,1736867442259,-500.0,9.97e-05,2]
[348900891,1736867442269,-500.0,9.97e-05,2]
[348900894,1736867442278,-1200.8,9.97e-05,2]
[348900896,1736867442288,-500.0,9.97e-05,2]
[348900897,1736867442298,-500.0,9.97e-05,2]
[348900899,1736867442308,-500.0,9.97e-05,2]
[348900901,1736867442319,-500.0,9.97e-05,2]
[348900903,1736867442328,-815.87,9.97e-05,2]
[348900905,1736867442338,-500.0,9.97e-05,2]
[348900907,1736867442347,-501.59790411,9.97e-05,2]
[348900909,1736867442357,-473.91821886,9.97e-05,2]
[348900911,1736867442366,-500.0,9.97e-05,2]
[348900914,1736867442378,-1395.3,9.97e-05,2]
[348900915,1736867442388,-500.0,9.97e-05,2]
[348900918,1736867442398,-500.0,9.97e-05,2]
[348900920,1736867442409,-500.0,9.97e-05,2]
[348900922,1736867442419,-795.64,9.97e-05,2]
[348900924,1736867442428,-500.0,9.97e-05,2]
[348900926,1736867442439,-890.36,9.97e-05,2]
[348900928,1736867442448,-505.22785167,9.97e-05,2]
[348900930,1736867442457,-500.0,9.97e-05,2]
[348900931,1736867442467,-501.36088546,9.97e-05,2]
[348900933,1736867442478,-503.42399889,9.97e-05,2]
[348900935,1736867442488,-1273.78,9.97e-05,2]
[348900937,1736867442498,-576.35,9.97e-05,2]
[348900938,1736867442507,-634.28,9.97e-05,2]
[348900939,1736867442516,-500.0,9.97e-05,2]
[348900940,1736867442527,-503.45485883,9.97e-05,2]
[348900941,1736867442537,-501.714838,9.97e-05,2]
[348900942,1736867442547,-784.2,9.97e-05,2]
[348900943,1736867442556,-1365.8,9.97e-05,2]
[348900944,1736867442568,-500.0,9.97e-05,2]
[348900945,1736867442578,-500.0,9.97e-05,2]
[348900946,1736867442587,-500.0,9.97e-05,2]
[348900947,1736867442596,-500.0,9.97e-05,2]
[348900948,1736867442606,-500.0,9.97e-05,2]
[348900949,1736867442615,-500.0,9.97e-05,2]
[348900950,1736867442625,-614.21,9.97e-05,2]
[348900951,1736867442635,-500.0,9.97e-05,2]
[348900953,1736867442644,-500.0,9.97e-05,2]
[348900955,1736867442655,-500.0,9.97e-05,2]
[348900957,1736867442668,-500.0,9.97e-05,2]
[348900959,1736867442677,-500.0,9.97e-05,2]
[348900961,1736867442687,-500.0,9.97e-05,2]
[348900963,1736867442698,-500.0,9.97e-05,2]
[348900965,1736867442707,-824.63,9.97e-05,2]
[348900967,1736867442717,-500.0,9.97e-05,2]
[348900969,1736867442726,-500.0,9.97e-05,2]
[348900971,1736867442736,-500.0,9.97e-05,2]
[348900973,1736867442748,-500.0,9.97e-05,2]
[348900975,1736867442757,-500.0,9.97e-05,2]
[348900977,1736867442767,-500.0,9.97e-05,2]
[348900979,1736867442777,-500.0,9.97e-05,2]
[348900981,1736867442786,-500.0,9.97e-05,2]
[348900983,1736867442796,-500.0,9.97e-05,2]
[348900985,1736867442805,-500.0,9.97e-05,2]
[348900987,1736867442817,-500.0,9.97e-05,2]
[348900989,1736867442826,-500.0,9.97e-05,2]
[348900991,1736867442835,-500.0,9.97e-05,2]
[348900993,1736867442845,-1168.21,9.97e-05,2]
[348900995,1736867442854,-500.0,9.97e-05,2]
[348900997,1736867442863,-500.0,9.97e-05,2]
[348900999,1736867442872,-500.0,9.97e-05,2]
[348901001,1736867442882,-555.3,9.97e-05,2]
[348901003,1736867442891,-500.0,9.97e-05,2]
[348901005,1736867442900,-500.0,9.97e-05,2]
[348901007,1736867442910,-500.0,9.97e-05,2]
[348901009,1736867442919,-500.0,9.97e-05,2]
[348901011,1736867442929,-500.0,9.97e-05,2]
[348901013,1736867442939,-500.0,9.97e-05,2]
[348901015,1736867442948,-571.6730656,9.97e-05,2]
[348901017,1736867442957,-500.0,9.97e-05,2]
[348901019,1736867442970,-500.0,9.97e-05,2]
[348901021,1736867442980,-500.0,9.97e-05,2]
[348901023,1736867442991,-585.98,9.97e-05,2]
[348901025,1736867443001,-500.0,9.97e-05,2]
[348901027,1736867443011,-500.0,9.97e-05,2]
[348901029,1736867443020,-1899.73,9.97e-05,2]
[348901031,1736867443030,-500.0,9.97e-05,2]
[348901033,1736867443039,-501.63872328,9.97e-05,2]
[348901035,1736867443048,-1118.4,9.97e-05,2]
[348901037,1736867443058,-668.22,9.97e-05,2]
[348901039,1736867443070,-500.0,9.97e-05,2]
[348901041,1736867443080,-937.57,9.97e-05,2]
[348901043,1736867443089,-958.18,9.97e-05,2]
[348901045,1736867443099,-501.32859064,9.97e-05,2]
[348901047,1736867443108,-500.0,9.97e-05,2]
[348901049,1736867443118,-500.0,9.97e-05,2]
[348901052,1736867443128,-1218.25,9.97e-05,2]
[348901053,1736867443138,-500.0,9.97e-05,2]
[348901055,1736867443147,-500.0,9.97e-05,2]
[348901057,1736867443156,-500.0,9.97e-05,2]
[348901059,1736867443166,-500.0,9.97e-05,2]
[348901061,1736867443176,-500.0,9.97e-05,2]
[348901071,1736867443237,-500.0,9.97e-05,2]
[348901073,1736867443246,-905.27,9.97e-05,2]
[348901075,1736867443256,-500.0,9.97e-05,2]
[348901077,1736867443265,-501.00282612,9.97e-05,2]
[348901079,1736867443275,-500.0,9.97e-05,2]
[348901081,1736867443284,-500.35373502,9.97e-05,2]
[348901083,1736867443293,-4998.1,9.97e-05,2]
[348901085,1736867443302,-500.0,9.97e-05,2]
[348901087,1736867443313,-500.0,9.97e-05,2]
[348901089,1736867443324,-502.05273493,9.97e-05,2]
[348901091,1736867443334,-500.0,9.97e-05,2]
[348901093,1736867443343,-501.46697405,9.97e-05,2]
[348901095,1736867443353,-500.0,9.97e-05,2]
[348901097,1736867443362,-1010.39,9.97e-05,2]
[348901099,1736867443371,-500.0,9.97e-05,2]
[348901101,1736867443380,-1628.52,9.97e-05,2]
[348901103,1736867443390,-964.55,9.97e-05,2]
[348901105,1736867443398,-500.0,9.97e-05,2]
[348901107,1736867443408,-500.0,9.97e-05,2]
[348901109,1736867443418,-1059.73,9.97e-05,2]
[348901111,1736867443427,-2330.2,9.97e-05,2]
[348901113,1736867443436,-500.0,9.97e-05,2]
[348901115,1736867443445,-500.0,9.97e-05,2]
[348901117,1736867443454,-777.64,9.97e-05,2]
[348901119,1736867443463,-505.8999662,9.97e-05,2]
[348901121,1736867443472,-500.0,9.97e-05,2]
[348901123,1736867443481,-500.0,9.97e-05,2]
[348901125,1736867443490,-1327.3,9.97e-05,2]
[348901127,1736867443499,-503.31650611,9.97e-05,2]
[348901128,1736867443509,-278.64269338,9.97e-05,2]
[348901130,1736867443519,-1266.53,9.97e-05,2]
[348901133,1736867443528,-500.0,9.97e-05,2]
[348901135,1736867443537,-500.0,9.97e-05,2]
[348901137,1736867443548,-1096.32,9.97e-05,2]
[348901139,1736867443557,-500.0,9.97e-05,2]
[348901140,1736867443570,-4318.15,9.97e-05,2]
[348901142,1736867443579,-1283.56,9.97e-05,2]
[348901144,1736867443589,-1166.96,9.97e-05,2]
[348901147,1736867443598,-500.0,9.97e-05,2]
[348901148,1736867443608,-500.0,9.97e-05,2]
[348901151,1736867443618,-500.0,9.97e-05,2]
[348901153,1736867443628,-500.0,9.97e-05,2]
[348901154,1736867443637,-500.0,9.97e-05,2]
[348901156,1736867443646,-500.0,9.97e-05,2]
[348901158,1736867443655,-500.0,9.97e-05,2]
[348901160,1736867443668,-1124.3,9.97e-05,2]
[348901162,1736867443677,-500.0,9.97e-05,2]
[348901164,1736867443686,-500.0,9.97e-05,2]
[348901166,1736867443696,-500.0,9.97e-05,2]
[348901169,1736867443706,-500.0,9.97e-05,2]
[348901171,1736867443716,-500.0,9.97e-05,2]
[348901173,1736867443725,-1994.37,9.97e-05,2]
[348901175,1736867443735,-500.0,9.97e-05,2]
[348901177,1736867443744,-500.0,9.97e-05,2]
[348901179,1736867443754,-1873.66,9.97e-05,2]
[348901181,1736867443763,-654.41,9.97e-05,2]
[348901183,1736867443772,-500.0,9.97e-05,2]
[348901185,1736867443781,-500.0,9.97e-05,2]
[348901187,1736867443790,-1907.0,9.97e-05,2]
[348901189,1736867443800,-1677.31,9.97e-05,2]
[348901191,1736867443809,-504.3808806,9.97e-05,2]
[348901193,1736867443821,-2841.58,9.97e-05,2]
[348901195,1736867443830,-866.54,9.97e-05,2]
[348901197,1736867443839,-500.0,9.97e-05,2]
[348901199,1736867443848,-500.0,9.97e-05,2]
[348901201,1736867443857,-500.0,9.97e-05,2]
[348901203,1736867443866,-500.0,9.97e-05,2]
[348901205,1736867443876,-501.76566626,9.97e-05,2]
[348901207,1736867443885,-500.0,9.97e-05,2]
[348901209,1736867443894,-500.0,9.97e-05,2]
[348901211,1736867443903,-500.0,9.97e-05,2]
[348901213,1736867443913,-437.36684285,9.97e-05,2]
[348901256,1736867444297,-62.63315715,9.97e-05,2]
[348901258,1736867444306,-500.0,9.97e-05,2]
[348901260,1736867444316,-500.0,9.97e-05,2]
[348901262,1736867444326,-500.0,9.97e-05,2]
[348901263,1736867444335,-296.42775344,9.97e-05,2]
[348901265,1736867444345,-377.37855676,9.97e-05,2]
[348901267,1736867444354,-4545.7962535,9.97e-05,2]
[348901276,1736867444420,-500.0,9.969e-05,2]
[348901278,1736867444430,-500.0,9.969e-05,2]
[348901280,1736867444439,-9227.60054062,9.97e-05,2]
[348901293,1736867444556,-927.27566437,9.97e-05,2]
[348901295,1736867444569,-25819.8454,9.97e-05,2]
[348901297,1736867444581,-861.02439039,9.97e-05,2]
[348901299,1736867444592,-49023.74156684,9.97e-05,2]
[348901301,1736867444602,-296.42775344,9.971e-05,2]
[348901304,1736867444612,-836.80746656,9.971e-05,2]
[348901306,1736867444621,-629.59707149,9.971e-05,2]
[348901309,1736867444631,-1978.41154196,9.971e-05,2]
[348901311,1736867444640,-90405.28381572,9.971e-05,2]
[348901313,1736867444650,-200.0,9.971e-05,2]
[348901315,1736867444661,-85908.10381961,9.971e-05,2]
[348901317,1736867444673,-629.59707149,9.971e-05,2]
[348901319,1736867444682,-1889.41991761,9.971e-05,2]
[348901321,1736867444692,-1438.73869189,9.971e-05,2]
[348901323,1736867444703,-787.81096174,9.971e-05,2]
[348901325,1736867444712,-1889.41991761,9.971e-05,2]
[348901327,1736867444722,-1198.06,9.971e-05,2]
[348901329,1736867444731,-2456.22,9.971e-05,2]
[348901331,1736867444742,-1314.63,9.971e-05,2]
[348901333,1736867444752,-1107.56120202,9.971e-05,2]
[348901335,1736867444762,-1241.26,9.971e-05,2]
[348901337,1736867444771,-1168.21,9.971e-05,2]
[348901339,1736867444782,-500.0,9.971e-05,2]
[348901341,1736867444791,-1469.64,9.971e-05,2]
[348901343,1736867444803,-803.08,9.971e-05,2]
[348901345,1736867444814,-1543.69,9.971e-05,2]
[348901347,1736867444824,-1036.84,9.971e-05,2]
[348901349,1736867444834,-1632.31,9.971e-05,2]
[348901351,1736867444844,-1509.09,9.971e-05,2]
[348901353,1736867444853,-2170.93,9.971e-05,2]
[348901355,1736867444862,-3872.36,9.971e-05,2]
[348901357,1736867444872,-9640.27,9.971e-05,2]
[348901359,1736867444881,-1130.26,9.971e-05,2]
[348901361,1736867444891,-3377.64,9.971e-05,2]
[348901363,1736867444900,-1757.15,9.971e-05,2]
[348901365,1736867444910,-500.0,9.971e-05,2]
[348901367,1736867444919,-1717.49,9.971e-05,2]
[348901369,1736867444929,-1201.72,9.971e-05,2]
[348901371,1736867444938,-2276.4,9.971e-05,2]
[348901373,1736867444948,-3327.91888739,9.972e-05,2]
[348901375,1736867444957,-836.80746656,9.972e-05,2]
[348901377,1736867444967,-500.0,9.972e-05,2]
[348901379,1736867444978,-629.59707149,9.972e-05,2]
[348901381,1736867444987,-472.3549794,9.972e-05,2]
[348901383,1736867444997,-4722.621396,9.972e-05,2]
[348901386,1736867445007,-19695.0,9.973e-05,2]
[348901388,1736867445017,-4613.0,9.973e-05,2]
[348901390,1736867445027,-414.61436255,9.973e-05,2]
[348901392,1736867445037,-166.17251267,9.973e-05,2]
[348901394,1736867445046,-500.0,9.973e-05,2]
[348901396,1736867445055,-500.0,9.973e-05,2]
[348901398,1736867445066,-504.56040907,9.973e-05,2]
[348901400,1736867445076,-758.27976514,9.973e-05,2]
[348901402,1736867445085,-629.59707149,9.973e-05,2]
[348901404,1736867445094,-84246.75062401,9.973e-05,2]
[348901406,1736867445104,-472.3549794,9.974e-05,2]
[348901408,1736867445113,-758.27976514,9.974e-05,2]
[348901410,1736867445123,-90405.28381572,9.974e-05,2]
[348901412,1736867445133,-1889.41991761,9.974e-05,2]
[348901414,1736867445143,-200.0,9.974e-05,2]
[348901416,1736867445153,-787.81096174,9.974e-05,2]
[348901418,1736867445163,-414.31151459,9.975e-05,2]
[348901420,1736867445172,-629.59707149,9.975e-05,2]
[348901422,1736867445182,-461.85201169,9.975e-05,2]
[348901424,1736867445191,-627.27626994,9.975e-05,2]
[348901426,1736867445200,-500.0,9.975e-05,2]
[348901428,1736867445210,-836.80746656,9.975e-05,2]
[348901430,1736867445221,-1978.41154196,9.975e-05,2]
[348901432,1736867445231,-627.27626994,9.975e-05,2]
[348901434,1736867445242,-84230.17908046,9.975e-05,2]
[348901436,1736867445252,-4722.621396,9.975e-05,2]
[348901438,1736867445262,-787.81096174,9.975e-05,2]
[348901440,1736867445272,-90405.28381572,9.976e-05,2]
[348901442,1736867445282,-836.80746656,9.976e-05,2]
[348901444,1736867445291,-1009.12081812,9.976e-05,2]
[348901446,1736867445300,-500.0,9.976e-05,2]
[348901449,1736867445311,-84230.17908046,9.976e-05,2]
[348901451,1736867445321,-84230.17908046,9.976e-05,2]
[348901453,1736867445333,-814.69903181,9.976e-05,2]
[348901455,1736867445343,-85908.10381961,9.976e-05,2]
[348901457,1736867445353,-923.70402339,9.976e-05,2]
[348901459,1736867445365,-504.56040907,9.976e-05,2]
[348901461,1736867445375,-923.70402339,9.976e-05,2]
[348901463,1736867445386,-84230.17908046,9.977e-05,2]
[348901465,1736867445396,-472.3549794,9.977e-05,2]
[348901467,1736867445406,-923.70402339,9.977e-05,2]
[348901469,1736867445416,-629.59707149,9.977e-05,2]
[348901471,1736867445427,-500.0,9.977e-05,2]
[348901473,1736867445437,-414.31151459,9.977e-05,2]
[348901475,1736867445446,-836.80746656,9.978e-05,2]
[348901477,1736867445456,-414.31151459,9.978e-05,2]
[348901479,1736867445466,-377.37855676,9.978e-05,2]
[348901481,1736867445476,-3619.28,9.978e-05,2]
[348901483,1736867445485,-1036.82,9.978e-05,2]
[348901485,1736867445495,-3997.08,9.978e-05,2]
[348901487,1736867445505,-1014.37,9.978e-05,2]
[348901489,1736867445515,-500.0,9.978e-05,2]
[348901490,1736867445524,-987.99,9.978e-05,2]
[348901491,1736867445533,-500.0,9.978e-05,2]
[348901492,1736867445543,-4722.621396,9.978e-05,2]
[348901493,1736867445553,-85908.10381961,9.978e-05,2]
[348901494,1736867445563,-3327.91888739,9.978e-05,2]
[348901495,1736867445573,-1009.12081812,9.979e-05,2]
[348901496,1736867445583,-603.00079296,9.98e-05,2]
[348901497,1736867445592,-1449.39806363,9.98e-05,2]
[348901498,1736867445601,-200.0,9.98e-05,2]
[348901499,1736867445611,-500.0,9.98e-05,2]
[348901500,1736867445620,-1438.73869189,9.98e-05,2]
[348901501,1736867445630,-3327.91888739,9.98e-05,2]
[348901502,1736867445639,-629.59707149,9.981e-05,2]
[348901504,1736867445649,-3327.91888739,9.981e-05,2]
[348901506,1736867445659,-836.80746656,9.981e-05,2]
[348901508,1736867445671,-85908.10381961,9.981e-05,2]
[348901510,1736867445681,-377.37855676,9.981e-05,2]
[348901512,1736867445690,-504.56040907,9.982e-05,2]
[348901514,1736867445700,-603.00079296,9.982e-05,2]
[348901516,1736867445710,-629.59707149,9.982e-05,2]
[348901518,1736867445719,-4722.621396,9.982e-05,2]
[348901520,1736867445729,-1009.12081812,9.982e-05,2]
[348901522,1736867445741,-200.0,9.982e-05,2]
[348901524,1736867445755,-629.59707149,9.982e-05,2]
[348901526,1736867445764,-923.70402339,9.983e-05,2]
[348901528,1736867445775,-1889.41991761,9.983e-05,2]
[348901530,1736867445785,-1449.39806363,9.983e-05,2]
[348901532,1736867445795,-461.85201169,9.983e-05,2]
[348901534,1736867445804,-1813.665336,9.983e-05,2]
[348901536,1736867445815,-603.00079296,9.983e-05,2]
[348901538,1736867445826,-6167.72746243,9.983e-05,2]
[348901540,1736867445836,-603.00079296,9.983e-05,2]
[348901542,1736867445846,-758.27976514,9.983e-05,2]
[348901544,1736867445856,-200.0,9.983e-05,2]
[348901546,1736867445866,-200.0,9.984e-05,2]
[348901548,1736867445876,-1813.665336,9.984e-05,2]
[348901550,1736867445886,-1813.665336,9.984e-05,2]
[348901553,1736867445898,-6167.72746243,9.984e-05,2]
[348901555,1736867445908,-296.42775344,9.985e-05,2]
[348901557,1736867445918,-200.0,9.985e-05,2]
[348901559,1736867445928,-504.56040907,9.985e-05,2]
[348901561,1736867445939,-814.69903181,9.985e-05,2]
[348901563,1736867445949,-200.0,9.985e-05,2]
[348901565,1736867445959,-1449.39806363,9.985e-05,2]
[348901567,1736867445969,-6167.72746243,9.985e-05,2]
[348901569,1736867445979,-414.31151459,9.985e-05,2]
[348901571,1736867445989,-629.59707149,9.986e-05,2]
[348901573,1736867445999,-84246.75062401,9.986e-05,2]
[348901575,1736867446009,-500.0,9.986e-05,2]
[348901577,1736867446021,-472.3549794,9.986e-05,2]
[348901579,1736867446031,-1449.39806363,9.986e-05,2]
[348901581,1736867446042,-629.59707149,9.986e-05,2]
[348901583,1736867446052,-1978.41154196,9.987e-05,2]
[348901585,1736867446061,-1107.56120202,9.987e-05,2]
[348901587,1736867446071,-472.3549794,9.987e-05,2]
[348901590,1736867446081,-85908.10381961,9.987e-05,2]
[348901592,1736867446091,-296.42775344,9.987e-05,2]
[348901594,1736867446101,-1009.12081812,9.988e-05,2]
[348901596,1736867446111,-461.85201169,9.988e-05,2]
[348901598,1736867446121,-84246.75062401,9.988e-05,2]
[348901600,1736867446131,-414.31151459,9.988e-05,2]
[348901602,1736867446140,-923.70402339,9.988e-05,2]
[348901604,1736867446150,-414.31151459,9.988e-05,2]
[348901606,1736867446159,-296.42775344,9.988e-05,2]
[348901608,1736867446169,-461.85201169,9.988e-05,2]
[348901610,1736867446179,-758.27976514,9.988e-05,2]
[348901613,1736867446189,-377.37855676,9.988e-05,2]
[348901616,1736867446199,-1107.56120202,9.989e-05,2]
[348901619,1736867446209,-1813.665336,9.989e-05,2]
[348901621,1736867446218,-414.31151459,9.989e-05,2]
[348901623,1736867446227,-84230.17908046,9.989e-05,2]
[348901625,1736867446237,-414.31151459,9.989e-05,2]
[348901626,1736867446248,-3327.91888739,9.989e-05,2]
[348901628,1736867446258,-1813.665336,9.989e-05,2]
[348901630,1736867446268,-629.59707149,9.989e-05,2]
[348901632,1736867446278,-500.0,9.989e-05,2]
[348901634,1736867446288,-500.0,9.989e-05,2]
[348901637,1736867446297,-814.69903181,9.99e-05,2]
[348901639,1736867446308,-787.81096174,9.99e-05,2]
[348901641,1736867446319,-200.0,9.99e-05,2]
[348901643,1736867446328,-1438.73869189,9.99e-05,2]
[348901645,1736867446338,-814.69903181,9.99e-05,2]
[348901647,1736867446348,-200.0,9.99e-05,2]
[348901649,1736867446358,-377.37855676,9.99e-05,2]
[348901651,1736867446367,-414.31151459,9.99e-05,2]
[348901654,1736867446378,-90405.28381572,9.99e-05,2]
[348901655,1736867446387,-6167.72746243,9.991e-05,2]
[348901657,1736867446397,-1889.41991761,9.991e-05,2]
[348901659,1736867446407,-1009.12081812,9.991e-05,2]
[348901661,1736867446417,-787.81096174,9.991e-05,2]
[348901663,1736867446427,-500.0,9.991e-05,2]
[348901666,1736867446437,-603.00079296,9.991e-05,2]
[348901668,1736867446447,-296.42775344,9.992e-05,2]
[348901670,1736867446457,-627.27626994,9.992e-05,2]
[348901672,1736867446467,-814.69903181,9.992e-05,2]
[348901674,1736867446477,-629.59707149,9.992e-05,2]
[348901676,1736867446486,-500.0,9.992e-05,2]
[348901678,1736867446497,-923.70402339,9.992e-05,2]
[348901680,1736867446507,-758.27976514,9.992e-05,2]
[348901682,1736867446517,-629.59707149,9.993e-05,2]
[348901684,1736867446527,-377.37855676,9.993e-05,2]
[348901686,1736867446536,-1009.12081812,9.993e-05,2]
[348901688,1736867446547,-627.27626994,9.993e-05,2]
[348901690,1736867446557,-603.00079296,9.993e-05,2]
[348901692,1736867446569,-296.42775344,9.993e-05,2]
[348901694,1736867446580,-1438.73869189,9.994e-05,2]
[348901695,1736867446591,-1107.56120202,9.994e-05,2]
[348901697,1736867446601,-1107.56120202,9.994e-05,2]
[348901699,1736867446611,-2284.05,9.994e-05,2]
[348901701,1736867446622,-173.461,9.994e-05,2]
[348901703,1736867446633,-1889.41991761,9.994e-05,2]
[348901705,1736867446643,-84230.17908046,9.994e-05,2]
[348901708,1736867446653,-629.59707149,9.994e-05,2]
[348901710,1736867446666,-6167.72746243,9.994e-05,2]
[348901712,1736867446676,-1438.73869189,9.994e-05,2]
[348901714,1736867446686,-627.27626994,9.994e-05,2]
[348901716,1736867446698,-787.81096174,9.994e-05,2]
[348901717,1736867446709,-629.59707149,9.995e-05,2]
[348901719,1736867446719,-4722.621396,9.995e-05,2]
[348901721,1736867446729,-461.85201169,9.995e-05,2]
[348901723,1736867446739,-84246.75062401,9.995e-05,2]
[348901725,1736867446750,-814.69903181,9.995e-05,2]
[348901727,1736867446760,-629.59707149,9.995e-05,2]
[348901729,1736867446769,-90405.28381572,9.995e-05,2]
[348901731,1736867446779,-414.31151459,9.996e-05,2]
[348901733,1736867446789,-1107.56120202,9.996e-05,2]
[348901735,1736867446799,-6167.72746243,9.996e-05,2]
[348901737,1736867446808,-472.3549794,9.996e-05,2]
[348901761,1736867446819,-414.31151459,9.996e-05,2]
[348901764,1736867447038,-296.42775344,9.996e-05,2]
[348901766,1736867447048,-1978.41154196,9.996e-05,2]
[348901768,1736867447057,-504.56040907,9.996e-05,2]
[348901769,1736867447068,-504.56040907,9.996e-05,2]
[348901771,1736867447077,-500.0,9.996e-05,2]
[348901773,1736867447086,-1449.39806363,9.996e-05,2]
[348901775,1736867447095,-150.0,9.997e-05,2]
[348901777,1736867447105,-150.0,9.997e-05,2]
[348901779,1736867447114,-2015.0,9.997e-05,2]
[348901781,1736867447124,-1267.0,9.997e-05,2]
[348901783,1736867447133,-150.0,9.997e-05,2]
[348901784,1736867447143,-566.0,9.997e-05,2]
[348901785,1736867447152,-635.0,9.997e-05,2]
[348901786,1736867447162,-1862.0,9.997e-05,2]
[348901787,1736867447172,-1259.0,9.997e-05,2]
[348901788,1736867447182,-820.0,9.997e-05,2]
[348901789,1736867447191,-2945.0,9.997e-05,2]
[348901790,1736867447200,-906.0,9.997e-05,2]
[348901791,1736867447210,-537.0,9.997e-05,2]
[348901792,1736867447220,-3979.0,9.997e-05,2]
[348901793,1736867447229,-3897.0,9.997e-05,2]
[348901794,1736867447238,-150.0,9.997e-05,2]
[348901796,1736867447248,-84246.75062401,9.997e-05,2]
[348901798,1736867447257,-200.0,9.997e-05,2]
[348901800,1736867447267,-1449.39806363,9.997e-05,2]
[348901802,1736867447276,-414.31151459,9.997e-05,2]
[348901804,1736867447286,-1238.32798221,9.997e-05,3]
[348901805,1736867447296,-210.64207761,9.997e-05,2]
[348901807,1736867447305,-3327.91888739,9.997e-05,2]
[348901809,1736867447316,-500.0,9.997e-05,2]
[348901811,1736867447325,-1438.73869189,9.998e-05,2]
[348901813,1736867447334,-758.27976514,9.998e-05,2]
[348901815,1736867447344,-1183326.74668342,9.998e-05,2]
[348901833,1736867447580,-250.0,8.974e-05,2]
[348901834,1736867447589,-1010.9206,9.87e-05,2]
[348901835,1736867447599,-500.0,9.969e-05,2]
[348901836,1736867447609,-500.0,9.97e-05,2]
[348901837,1736867447618,-11924.38006,9.998e-05,2]
[348901838,1736867447630,-18839.809195,9.998e-05,2]
[348901839,1736867447645,-960.04732913,9.998e-05,2]
[348901840,1736867447694,-11850.91204221,9.998e-05,2]
[348901841,1736867447707,-415.1,9.998e-05,2]
[348901842,1736867447719,-484.85462293,9.998e-05,2]
[348901876,1736867448083,-500.0,9.969e-05,2]
[348901879,1736867448094,-500.0,9.969e-05,2]
[348901881,1736867448104,-500.0,9.969e-05,2]
[348901883,1736867448113,-500.0,9.97e-05,2]
[348901885,1736867448123,-1271.33,9.97e-05,2]
[348901887,1736867448132,-451.24447242,9.974e-05,2]
[348901889,1736867448142,-451.24447242,9.977e-05,2]
[348901890,1736867448151,-451.24447242,9.981e-05,2]
[348901892,1736867448161,-451.24447242,9.988e-05,2]
[348901894,1736867448170,-451.24447242,9.991e-05,2]
[348901896,1736867448180,-909.56791437,9.998e-05,2]
[348901898,1736867448192,-11876.39998308,9.998e-05,2]
[348901901,1736867448204,-300.0,9.998e-05,2]
[348901903,1736867448221,-7441.82943249,9.998e-05,2]
[348901905,1736867448232,-1023.786069,9.998e-05,2]
[348901908,1736867448244,-178099.28525734,9.998e-05,2]